bitfinex/quotes_ETHUSD_20241212
["timestamp","ask_amount","ask_price","bid_price","bid_amount"]
[1734003038288,0.7609,3923.4,3922.5,1.06455521]
[1734003038489,0.7609,3923.4,3922.6,2.19743778]
[1734003038689,0.7609,3923.4,3922.7,0.87899586]
[1734003040402,0.7609,3923.4,3922.9,2.54913]
[1734003040806,0.7609,3923.4,3922.7,2.54924]
[1734003040995,0.7609,3923.4,3922.8,2.19625132]
[1734003041301,0.7609,3923.4,3922.7,2.54924]
[1734003041507,0.7609,3923.4,3922.8,0.87839059]
[1734003041902,0.7609,3923.4,3922.8,3.42756059]
[1734003042101,0.7609,3923.4,3922.8,2.54917]
[1734003042534,0.7609,3923.4,3922.9,0.02174728]
[1734003042825,0.7609,3923.4,3923.0,2.19517906]
[1734003043025,0.7609,3923.4,3922.8,1.42592773]
[1734003043026,0.7609,3923.4,3923.3,2.54887]
[1734003043338,0.07962625,3924.2,3923.3,2.54887]
[1734003043339,0.7892,3924.1,3923.3,2.54883]
[1734003044253,0.7892,3924.1,3923.0,1.06455521]
[1734003044254,0.7892,3924.1,3923.5,2.5487]
[1734003046017,10.0,3924.0,3923.5,2.5487]
[1734003046562,10.0,3924.0,3923.7,2.54855]
[1734003047554,10.0,3924.0,3923.9,2.54848]
[1734003049221,10.0,3924.0,3923.6,1.06455521]
[1734003049434,10.0,3924.0,3923.7,2.19500638]
[1734003049637,10.0,3924.0,3923.9,2.54848]
[1734003049844,10.0,3924.0,3923.9,3.42648255]
[1734003050040,10.0,3924.0,3923.9,3.4264577]
[1734003050255,10.0,3924.0,3923.9,0.8779777]
[1734003050454,0.817,3923.9,3923.6,1.06455521]
[1734003050653,0.817,3923.9,3923.1,1.06455521]
[1734003050858,0.817,3923.9,3922.7,1.06455521]
[1734003050859,0.8211,3923.6,3922.7,1.06455521]
[1734003051064,0.07962483,3923.5,3922.6,2.54932]
[1734003051216,1.24566735,3923.6,3922.7,2.19840808]
[1734003051420,1.24566735,3923.6,3922.8,0.87936323]
[1734003051744,1.24566735,3923.6,3922.6,3.61387521]
[1734003051745,1.24566735,3923.6,3922.6,2.54932]
[1734003052057,0.8242,3923.5,3922.7,0.87933493]
[1734003052359,0.8242,3923.4,3922.5,2.54933]
[1734003052520,0.8242,3923.4,3922.6,2.19790985]
[1734003052732,0.8242,3923.4,3922.6,4.74720985]
[1734003053054,0.8242,3923.4,3922.7,0.87916394]
[1734003053625,0.8242,3923.4,3922.5,1.06455521]
[1734003053828,0.8242,3923.4,3922.6,0.87925958]
[1734003054027,0.8242,3923.4,3922.4,1.06455521]
[1734003054222,0.8242,3923.4,3922.6,2.54932]
[1734003054454,0.8242,3923.4,3922.7,0.87927363]
[1734003054650,0.8242,3923.4,3922.6,2.54932]
[1734003055849,0.8242,3923.4,3922.7,3.42798402]
[1734003056051,0.8242,3923.4,3922.7,2.54923]
[1734003056440,0.8242,3923.4,3922.5,2.54938]
[1734003056640,0.8242,3923.4,3922.6,2.19687432]
[1734003056863,0.8242,3923.4,3922.5,3.12256678]
[1734003057336,2.54897,3923.2,3922.2,1.06455521]
[1734003057538,1.09767604,3923.8,3921.9,1.06455521]
[1734003057539,2.54907,3923.0,3921.9,1.06455521]
[1734003057765,0.8306,3922.9,3922.0,3.86823942]
[1734003058075,0.8306,3922.9,3922.1,2.19754903]
[1734003058277,0.8306,3922.9,3922.0,2.54971]
[1734003058432,0.8306,3922.9,3922.1,2.1971927]
[1734003058637,0.8306,3922.9,3922.1,2.54964]
[1734003058871,0.8306,3922.9,3922.2,3.42844861]
[1734003059036,0.8306,3922.9,3922.2,2.54958]
[1734003060685,0.8306,3922.9,3922.3,2.5495]
[1734003061180,0.8306,3922.9,3922.1,0.36141952]
[1734003061350,0.8306,3922.9,3922.1,2.91105952]
[1734003061536,0.8306,3922.9,3922.2,2.94714147]
[1734003062077,0.8306,3922.9,3922.3,2.54952]
[1734003062287,0.8317,3923.2,3922.9,2.54908]
[1734003063268,0.8317,3923.2,3922.9,2.803988]
[1734003064346,0.8317,3923.2,3922.3,1.06455521]
[1734003064547,0.8317,3923.2,3922.6,2.54926]
[1734003064774,0.8317,3923.2,3922.7,3.42736497]
[1734003064974,0.8317,3923.2,3922.7,2.54923]
[1734003065361,0.8317,3923.2,3923.0,2.54904]
[1734003065562,10.00573461,3924.0,3923.0,2.89174772]
[1734003065757,0.772,3923.9,3923.2,2.54893]
[1734003065978,0.772,3923.9,3923.3,0.87756596]
[1734003066172,0.772,3923.9,3923.1,3.63462606]
[1734003066356,10.00573461,3924.0,3923.1,3.63462606]
[1734003066357,10.00573461,3924.0,3923.2,3.25835611]
[1734003066564,10.00573461,3924.0,3923.3,2.1938009]
[1734003066773,10.00573461,3924.0,3923.4,2.93421979]
[1734003066962,10.00573461,3924.0,3923.8,2.54852]
[1734003067289,10.00573461,3924.0,3923.6,2.54864]
[1734003068684,10.00573461,3924.0,3923.2,1.06455521]
[1734003068860,0.8176,3923.9,3923.2,2.54892]
[1734003069062,0.8176,3923.9,3922.9,3.89103475]
[1734003069266,0.8176,3923.9,3923.3,2.54886]
[1734003070104,0.8176,3923.9,3923.6,2.54862]
[1734003070304,0.8176,3923.9,3923.7,2.54858]
[1734003070516,10.00573461,3924.0,3923.4,2.5488]
[1734003070790,10.00573461,3924.0,3923.5,2.19427445]
[1734003070953,10.00573461,3924.0,3923.8,2.54853]
[1734003071286,10.00573461,3924.0,3923.9,2.54848]
[1734003072872,10.00573461,3924.0,3923.9,4.74219688]
[1734003073062,10.00573461,3924.0,3923.9,5.80675209]
[1734003073265,10.00573461,3924.0,3923.9,6.92368017]
[1734003073470,10.00573461,3924.0,3923.9,5.86244686]
[1734003073656,10.00573461,3924.0,3923.9,6.92357163]
[1734003073858,10.00573461,3924.0,3923.9,5.86244686]
[1734003074279,10.00573461,3924.0,3923.9,6.92357163]
[1734003074453,10.00573461,3924.0,3923.9,5.86244686]
[1734003076496,10.00573461,3924.0,3923.9,4.54626343]
[1734003076794,10.00573461,3924.0,3923.9,3.66872998]
[1734003077005,10.00573461,3924.0,3923.9,4.54621384]
[1734003077299,10.00573461,3924.0,3923.9,1.99773354]
[1734003077458,10.00573461,3924.0,3923.6,1.70792569]
[1734003077459,10.00573461,3924.0,3923.8,2.54854]
[1734003078655,10.00573461,3924.0,3923.6,4.25659569]
[1734003078855,0.7555,3923.9,3923.3,1.06112477]
[1734003079097,0.7555,3923.9,3923.1,1.06112477]
[1734003079309,10.00573461,3924.0,3922.8,1.06112477]
[1734003079310,0.7555,3923.7,3922.8,1.06112477]
[1734003079458,0.7555,3923.7,3922.8,2.1959619]
[1734003079659,0.7555,3923.5,3922.4,3.61053477]
[1734003079883,0.7555,3923.5,3922.5,2.1965094]
[1734003079884,0.7906,3923.4,3922.5,2.1965094]
[1734003080088,0.7906,3923.4,3922.4,4.45218948]
[1734003080089,0.7906,3923.4,3922.6,0.87860376]
[1734003080289,0.7906,3923.4,3922.4,0.84165471]
[1734003080466,0.7906,3923.4,3922.5,2.54937]
[1734003080667,0.7906,3923.4,3922.6,0.8786881]
[1734003080867,0.7591,3923.3,3922.6,0.8786881]
[1734003081101,0.7591,3923.3,3922.3,6.43711431]
[1734003081272,0.7591,3923.3,3922.4,5.8077254]
[1734003081468,0.7591,3923.3,3922.5,2.19715063]
[1734003081692,0.7591,3923.3,3922.3,3.88760431]
[1734003081693,0.7591,3923.3,3922.6,4.74626874]
[1734003082002,0.7591,3923.3,3922.6,2.5493]
[1734003082561,0.7591,3923.3,3922.4,1.06112477]
[1734003082758,0.7591,3923.3,3922.5,2.197008]
[1734003082967,0.7631,3923.0,3922.2,1.06112477]
[1734003083301,0.7631,3923.0,3922.0,3.61083477]
[1734003083460,0.7631,3923.2,3922.1,2.19729406]
[1734003083660,0.330787,3923.3,3921.7,1.06112477]
[1734003083661,0.7631,3923.1,3921.7,1.06112477]
[1734003083965,0.7862,3922.6,3921.3,1.06112477]
[1734003084320,0.7862,3922.3,3921.3,2.19855858]
[1734003084659,0.7862,3922.3,3921.3,3.22187615]
[1734003084961,0.7862,3922.3,3921.4,0.87942343]
[1734003085394,0.7862,3922.3,3921.6,2.54996]
[1734003085787,0.7862,3922.3,3921.1,1.06112477]
[1734003085983,0.330787,3923.3,3920.8,1.06112477]
[1734003085984,0.7862,3921.9,3920.8,1.06112477]
[1734003086264,0.7862,3921.5,3920.5,8.79]
[1734003086463,0.7862,3921.5,3920.5,3.79342908]
[1734003086717,0.7862,3921.5,3920.1,1.44382477]
[1734003086862,3.33625,3921.5,3920.3,3.53035326]
[1734003087187,2.54978,3921.9,3920.3,2.55082]
[1734003087188,0.7862,3921.3,3920.3,2.55082]
[1734003087779,0.7862,3921.3,3920.5,2.55067]
[1734003088099,0.7862,3921.3,3920.3,2.55078]
[1734003088259,0.7862,3921.3,3920.4,2.55071]
[1734003088763,0.7862,3921.3,3920.5,2.55066]
[1734003088966,0.7862,3921.3,3920.6,2.55061]
[1734003089460,0.7862,3921.3,3920.0,5.02082271]
[1734003089701,0.7862,3921.3,3920.5,2.55069]
[1734003089901,0.7862,3921.3,3920.8,2.55043]
[1734003090203,0.7862,3921.3,3921.0,2.55034]
[1734003090565,0.7862,3921.3,3920.6,2.57613094]
[1734003090566,0.7862,3921.3,3920.7,2.55055]
[1734003090765,0.7862,3921.3,3920.4,2.5507]
[1734003090967,0.7862,3921.3,3920.4,3.40815443]
[1734003091499,0.7862,3921.3,3920.5,2.55069]
[1734003092971,0.7862,3921.3,3920.4,0.85745443]
[1734003093183,0.7862,3921.3,3920.4,3.40817443]
[1734003093384,0.7862,3921.3,3920.4,0.85745443]
[1734003094087,0.7862,3921.3,3920.6,2.55062]
[1734003094695,0.7862,3921.3,3920.4,3.40820443]
[1734003094900,0.7862,3921.3,3920.5,0.64082044]
[1734003097011,0.7878,3921.1,3920.2,3.0]
[1734003097421,0.7878,3921.1,3920.2,2.55082]
[1734003097998,0.7878,3921.1,3920.3,2.55081]
[1734003098193,0.7878,3921.1,3920.4,2.55074]
[1734003099094,0.7878,3921.1,3920.1,0.64646475]
[1734003099095,0.7878,3921.1,3920.9,2.55037]
[1734003099289,0.8159,3921.9,3920.9,2.55037]
[1734003099531,0.8159,3921.8,3920.9,2.55037]
[1734003099834,0.8159,3921.8,3920.7,2.55054]
[1734003100496,0.8159,3921.8,3920.2,1.25244848]
[1734003100828,0.50143025,3921.9,3920.4,2.5507]
[1734003100829,0.807,3921.5,3920.4,2.5507]
[1734003101030,0.807,3921.5,3920.3,0.47253928]
[1734003101331,0.807,3921.5,3920.3,3.02334928]
[1734003101493,0.807,3921.5,3920.6,2.55056]
[1734003102693,0.807,3921.5,3920.4,2.55074]
[1734003102897,0.7507,3921.4,3920.5,0.68930278]
[1734003103592,2.55012,3921.4,3920.5,0.68930278]
[1734003103806,0.8114,3921.3,3920.5,0.68930278]
[1734003104445,0.8114,3921.3,3920.2,2.87057848]
[1734003104625,0.8114,3921.3,3920.3,2.55079]
[1734003105451,0.8114,3921.3,3920.2,0.31974848]
[1734003105615,0.7535,3921.2,3920.2,0.31974848]
[1734003105815,0.7535,3921.2,3920.3,2.55081]
[1734003106008,0.7535,3921.2,3920.3,3.1205138]
[1734003106214,0.7535,3921.2,3920.4,2.55074]
[1734003107498,0.7535,3921.2,3919.9,0.3827]
[1734003107699,0.8154,3920.9,3919.7,3.55]
[1734003107898,0.8154,3920.9,3919.9,2.55108]
[1734003108140,0.8154,3920.9,3919.9,3.48210595]
[1734003108509,0.7883,3920.8,3919.3,0.3827]
[1734003108841,2.55038,3921.0,3919.5,2.55131]
[1734003109047,0.7624,3920.9,3919.2,2.82647954]
[1734003109339,0.7624,3920.4,3919.4,2.5514]
[1734003109545,0.7624,3920.4,3919.2,2.82647954]
[1734003109715,0.7624,3920.4,3919.5,2.55128]
[1734003109905,0.7624,3920.4,3919.2,2.82647954]
[1734003110240,0.7624,3920.4,3920.1,2.55093]
[1734003110823,0.7624,3920.4,3919.2,0.55]
[1734003111022,0.7624,3920.4,3919.5,2.55132]
[1734003112443,0.7624,3920.4,3919.2,0.55]
[1734003112645,0.7624,3920.4,3919.6,2.55125]
[1734003112809,0.7624,3920.4,3919.2,0.55]
[1734003113010,0.7624,3920.4,3919.8,2.55113]
[1734003114913,0.7624,3920.4,3919.5,3.0]
[1734003115411,0.7624,3920.4,3919.5,5.55133]
[1734003117427,0.7624,3920.4,3919.6,2.55125]
[1734003118170,0.7709,3920.0,3918.8,0.55]
[1734003118489,0.7709,3919.9,3919.0,2.55166]
[1734003118825,0.7709,3919.9,3919.3,2.55147]
[1734003119224,0.7709,3919.9,3918.7,2.82647954]
[1734003119563,0.7709,3919.9,3919.6,2.55127]
[1734003121063,0.7709,3919.9,3919.8,2.55115]
[1734003121268,0.7507,3920.3,3920.2,2.55089]
[1734003121639,0.7507,3920.3,3919.9,2.8519868]
[1734003121856,0.7507,3920.3,3920.1,2.55095]
[1734003122055,0.7507,3920.3,3920.2,2.55089]
[1734003122436,0.7507,3920.3,3919.9,2.82647954]
[1734003122751,0.7507,3920.3,3919.2,4.76023923]
[1734003122752,0.7507,3920.3,3920.0,0.28264795]
[1734003122933,0.7507,3920.3,3920.2,2.55089]
[1734003123864,0.85548315,3921.1,3920.7,2.55052]
[1734003124029,0.85548315,3921.1,3920.0,3.0]
[1734003124030,0.7758,3921.1,3920.0,3.0]
[1734003124227,0.07968076,3921.0,3920.3,3.0]
[1734003124430,0.07968076,3920.9,3920.3,3.0]
[1734003124631,0.7758,3921.1,3920.3,2.55082]
[1734003124862,0.07967866,3921.0,3920.3,0.555082]
[1734003125196,0.7758,3921.1,3920.3,0.555082]
[1734003125537,0.7758,3921.1,3920.4,0.90468363]
[1734003125885,0.7758,3921.1,3920.5,5.19773875]
[1734003126031,0.7944,3921.5,3920.7,2.82647954]
[1734003126230,0.7944,3921.5,3921.1,2.55027]
[1734003126439,0.7944,3921.5,3920.9,0.02550061]
[1734003126636,0.7944,3921.5,3921.1,2.55025]
[1734003127678,0.7944,3921.5,3920.8,1.00180431]
[1734003127965,0.7944,3921.5,3920.8,3.55228431]
[1734003128168,0.7944,3921.5,3920.9,0.87983753]
[1734003128369,0.7944,3921.5,3921.0,1.32038349]
[1734003128546,0.7944,3921.5,3921.4,2.5501]
[1734003128744,0.7982,3921.8,3921.0,1.44382477]
[1734003128963,0.7982,3921.8,3921.2,1.06112477]
[1734003129474,0.7982,3921.8,3921.4,2.5501]
[1734003129772,0.7982,3921.8,3921.5,0.88010511]
[1734003129956,0.7982,3921.8,3921.2,3.61134477]
[1734003130277,0.7982,3921.8,3921.3,2.20050285]
[1734003131174,0.7982,3921.8,3921.4,2.20050285]
[1734003131369,0.7982,3921.8,3921.3,2.55017]
[1734003131572,0.7982,3921.8,3921.4,0.88039303]
[1734003134702,0.7982,3921.8,3921.3,2.55017]
[1734003135000,0.7982,3921.8,3921.4,0.8800822]
[1734003135213,0.7982,3921.8,3920.9,3.0]
[1734003135499,0.8104,3921.5,3920.6,1.06112477]
[1734003135700,0.8104,3921.5,3920.3,2.82647954]
[1734003135701,2.54997,3921.6,3920.3,1.06112477]
[1734003135888,0.8104,3921.2,3920.4,2.20170521]
[1734003136093,0.8314,3921.4,3920.5,0.88063748]
[1734003136296,0.8314,3921.4,3920.6,3.87144693]
[1734003136597,0.8314,3921.4,3920.7,0.88063748]
[1734003136802,1.17749927,3921.4,3920.6,2.55061]
[1734003136962,0.8314,3921.4,3920.4,2.55074]
[1734003137160,0.8314,3921.4,3920.6,2.5506]
[1734003137362,0.8314,3921.4,3920.7,0.88073301]
[1734003139091,0.8314,3921.4,3920.6,2.5506]
[1734003139668,0.8314,3921.4,3920.7,0.88023479]
[1734003140191,0.8314,3921.4,3920.9,2.55043]
[1734003141125,0.8314,3921.4,3920.6,1.0650951]
[1734003141323,0.8314,3921.4,3920.7,3.87040422]
[1734003141472,0.8314,3921.4,3920.8,0.87989728]
[1734003142171,0.8314,3921.4,3920.8,3.43038728]
[1734003142403,0.8314,3921.4,3920.8,2.55049]
[1734003143165,0.8314,3921.4,3921.0,2.55035]
[1734003143405,0.8314,3921.4,3921.1,2.805295]
[1734003143782,0.8314,3921.4,3921.1,0.255035]
[1734003143980,0.8314,3921.4,3920.9,3.0]
[1734003144634,0.8314,3921.4,3920.6,4.97100585]
[1734003144906,0.8314,3921.4,3920.6,3.90591075]
[1734003145322,0.8314,3921.4,3920.3,6.6158551]
[1734003145487,2.55017,3921.3,3920.4,2.19936485]
[1734003145691,3.6155062,3922.3,3920.1,1.0650951]
[1734003145692,0.7633,3921.9,3920.1,1.0650951]
[1734003145992,0.8224,3920.9,3920.2,0.87994733]
[1734003146195,0.8224,3920.9,3919.9,2.55108]
[1734003146511,0.8224,3920.7,3920.0,2.72144575]
[1734003146809,0.8224,3920.7,3920.2,2.55088]
[1734003147021,0.8224,3920.7,3920.3,0.87978938]
[1734003148791,0.8224,3920.7,3920.2,2.55088]
[1734003149094,0.8224,3920.7,3920.1,3.0]
[1734003149296,0.8224,3920.7,3920.5,2.55067]
[1734003149977,0.8224,3920.7,3920.2,0.99639264]
[1734003150179,0.8224,3920.7,3920.3,3.43047167]
[1734003150370,0.8224,3920.7,3920.2,0.99639264]
[1734003150683,0.8224,3920.7,3920.6,2.55063]
[1734003150882,0.8117,3921.0,3920.6,2.55063]
[1734003151885,0.8117,3921.0,3920.3,1.0650951]
[1734003152214,0.8022,3921.4,3921.1,2.5503]
[1734003152718,0.8022,3921.4,3920.9,5.55041]
[1734003153303,0.8022,3921.4,3921.0,2.55036]
[1734003153920,0.8022,3921.4,3921.1,2.55029]
[1734003155218,0.90676577,3921.8,3921.3,2.55017]
[1734003155519,0.8271,3921.8,3921.3,2.55017]
[1734003156509,0.8271,3921.8,3921.4,2.55009]
[1734003156711,0.8271,3921.8,3921.0,0.68915746]
[1734003156712,0.8271,3921.8,3921.2,2.55021]
[1734003156922,0.8271,3921.8,3921.3,0.32393675]
[1734003158125,0.8271,3921.8,3921.4,0.02549835]
[1734003158332,0.8271,3921.8,3921.7,2.54991]
[1734003158491,0.8252,3922.1,3921.7,2.54991]
[1734003159711,0.8252,3922.1,3921.5,2.55003]
[1734003160225,0.07965946,3922.0,3921.5,2.55004]
[1734003160424,0.8252,3922.1,3921.5,2.55004]
[1734003160793,0.07965993,3922.0,3921.5,2.55004]
[1734003160991,0.8252,3922.1,3921.5,2.55004]
[1734003162133,0.50739607,3922.1,3921.6,3.104944]
[1734003163901,0.50739607,3922.1,3921.7,2.5499]
[1734003166833,0.50739607,3922.1,3921.6,0.555004]
[1734003167134,0.50739607,3922.1,3921.5,2.55002]
[1734003167332,0.50739607,3922.1,3921.6,4.75159202]
[1734003167531,0.50739607,3922.1,3921.7,0.88065681]
[1734003168952,0.0796572,3922.0,3921.3,4.0650951]
[1734003169251,0.07966194,3921.9,3921.4,0.88093232]
[1734003169437,0.07966194,3921.8,3921.1,3.6153851]
[1734003169643,0.7602,3922.0,3921.2,2.20275176]
[1734003169844,0.07966238,3921.9,3921.3,2.20275176]
[1734003170011,3.6153562,3922.6,3921.1,2.55029]
[1734003170012,0.7933,3921.8,3921.1,2.55029]
[1734003170213,0.87296492,3921.8,3921.2,2.20303465]
[1734003170458,2.54992,3921.7,3921.3,0.88121386]
[1734003170622,0.7882,3921.5,3921.3,0.88121386]
[1734003170949,0.7882,3921.5,3920.7,1.0650951]
[1734003171150,0.07967309,3921.4,3920.7,3.26895307]
[1734003171658,0.7882,3921.5,3920.7,5.81950307]
[1734003171820,0.7882,3921.5,3920.8,2.20385797]
[1734003172015,0.7882,3921.5,3920.9,2.20385797]
[1734003172215,0.7882,3921.5,3921.0,0.88154319]
[1734003172447,0.7882,3921.5,3920.7,3.6156451]
[1734003172753,0.7882,3921.5,3920.8,2.20367818]
[1734003173051,0.7882,3921.5,3921.1,2.55029]
[1734003173252,0.7882,3921.5,3921.2,3.4315467]
[1734003173454,0.7882,3921.5,3921.3,0.8813167]
[1734003174022,0.7882,3921.5,3921.0,3.6154551]
[1734003174349,0.7882,3921.5,3921.1,2.20317392]
[1734003175535,0.7882,3921.5,3920.8,1.0650951]
[1734003175868,0.7882,3921.5,3920.6,4.14825265]
[1734003175869,0.07967334,3921.4,3920.9,2.20369532]
[1734003176058,0.07967334,3921.4,3920.7,1.0650951]
[1734003176253,0.7725,3921.4,3920.7,3.26893191]
[1734003176456,0.0796733,3921.3,3920.8,2.20383681]
[1734003176762,0.7725,3921.4,3920.6,1.0650951]
[1734003176985,0.07967547,3921.3,3920.6,3.26897966]
[1734003177187,0.7725,3921.4,3920.6,4.59335384]
[1734003177487,0.07967543,3921.3,3920.7,2.20388456]
[1734003177667,0.7725,3921.4,3920.8,2.20388456]
[1734003177992,0.07967514,3921.3,3920.9,0.88155382]
[1734003178170,0.7641,3921.1,3920.3,1.0650951]
[1734003178481,0.7641,3920.7,3920.0,1.0650951]
[1734003179131,0.7641,3920.7,3920.1,1.32260208]
[1734003179340,0.7641,3920.7,3919.9,1.0650951]
[1734003179537,0.7641,3920.7,3919.9,4.0650951]
[1734003179741,0.7641,3920.7,3920.0,2.20400251]
[1734003180169,0.07968881,3920.6,3920.0,2.20400251]
[1734003180379,0.07968881,3920.6,3919.6,2.82647954]
[1734003180380,0.83368881,3920.5,3919.6,1.0650951]
[1734003180529,0.754,3920.3,3919.6,1.0650951]
[1734003180736,0.754,3920.3,3919.5,0.8818518]
[1734003180737,0.0796992,3920.2,3919.5,3.26964212]
[1734003180935,0.754,3920.3,3919.6,2.2045434]
[1734003181293,0.754,3920.3,3919.7,0.88181881]
[1734003181294,0.07969933,3920.2,3919.7,0.88181881]
[1734003181433,0.83369933,3920.3,3919.4,1.0650951]
[1734003181631,0.754,3920.3,3919.7,2.5512]
[1734003181873,0.754,3920.3,3919.8,2.20344913]
[1734003182081,0.754,3920.3,3919.9,0.88137965]
[1734003182273,0.754,3920.3,3919.7,3.6162951]
[1734003182574,0.754,3920.3,3919.8,0.88104336]
[1734003182774,0.754,3920.3,3920.0,2.551]
[1734003183080,1.0659862,3921.6,3920.1,0.88104336]
[1734003183081,3.43154337,3921.2,3920.1,0.88104336]
[1734003183383,0.51407588,3920.9,3920.1,0.88104336]
[1734003183589,0.8094,3920.8,3920.1,0.88104336]
[1734003184242,0.8094,3920.8,3920.0,2.551]
[1734003184243,0.8094,3920.8,3919.8,1.0650951]
[1734003184445,0.8094,3920.8,3920.1,2.55089]
[1734003184643,0.8094,3920.8,3920.2,2.20174815]
[1734003184872,0.8094,3920.8,3920.4,2.55075]
[1734003185077,0.8094,3920.8,3920.2,1.0650951]
[1734003185078,0.8094,3920.8,3920.2,3.6159251]
[1734003185279,0.8094,3920.8,3920.3,2.20116966]
[1734003185481,0.8094,3920.8,3920.2,2.55083]
[1734003185785,0.8094,3920.8,3920.3,1.52475043]
[1734003185984,0.8094,3920.8,3920.3,3.19505046]
[1734003186180,0.8094,3920.8,3920.3,0.64424046]
[1734003188095,0.8094,3920.8,3919.9,0.61897173]
[1734003188271,0.8094,3920.8,3919.5,4.61401683]
[1734003188473,0.7702,3920.5,3919.5,0.54892173]
[1734003188696,2.63039645,3920.5,3919.6,0.8806879]
[1734003188999,0.7702,3920.4,3919.5,0.54892173]
[1734003189198,0.7702,3920.4,3919.5,3.10025173]
[1734003189400,0.7702,3920.4,3919.6,3.43218988]
[1734003189707,0.7702,3920.4,3919.6,3.05589067]
[1734003191022,3.32096,3920.4,3919.4,3.0]
[1734003191193,0.7712,3920.2,3919.5,0.88069914]
[1734003191398,0.7712,3920.2,3919.3,3.0]
[1734003191699,0.7712,3920.2,3919.4,0.88057586]
[1734003191904,0.49976671,3920.6,3919.0,1.59764265]
[1734003191905,0.7712,3920.1,3919.0,1.0650951]
[1734003192073,2.55102,3920.0,3919.1,0.88064701]
[1734003192278,0.7585,3919.9,3919.1,0.88064701]
[1734003193087,0.7585,3919.9,3919.0,2.55162]
[1734003193409,0.7585,3919.9,3918.8,3.89157464]
[1734003193621,2.55128,3919.6,3918.9,2.2005312]
[1734003193775,2.55135,3919.5,3918.4,6.44362464]
[1734003193977,2.55107,3920.0,3918.5,2.2010872]
[1734003193978,0.7845,3919.4,3918.5,2.2010872]
[1734003194173,0.7845,3919.4,3918.5,2.87860823]
[1734003194815,1.29962608,3919.4,3918.5,2.87860823]
[1734003195120,1.29962608,3919.4,3918.0,2.55231]
[1734003195121,0.8074,3919.1,3918.0,2.55231]
[1734003195330,0.8074,3919.0,3918.1,0.88003951]
[1734003195616,0.8074,3918.9,3917.7,2.55245]
[1734003196121,0.8074,3918.9,3917.4,7.14475464]
[1734003196295,0.8074,3918.9,3918.0,2.55232]
[1734003196611,0.8074,3918.9,3918.1,2.55219]
[1734003197015,0.8074,3918.9,3917.6,5.55258]
[1734003197016,0.8074,3918.9,3918.3,2.55208]
[1734003197340,0.8074,3918.9,3918.3,0.255208]
[1734003198415,0.8074,3918.9,3918.0,2.55229]
[1734003198588,2.55182,3918.8,3917.9,3.0]
[1734003198790,2.55182,3918.8,3917.6,0.55]
[1734003198791,0.7686,3918.7,3917.6,0.55]
[1734003198991,0.7686,3918.1,3917.0,2.5529]
[1734003199323,0.8284,3918.0,3916.8,3.25359]
[1734003199482,0.8284,3918.0,3916.8,4.14218405]
[1734003199483,0.8284,3917.9,3916.8,4.14218405]
[1734003200016,0.8284,3917.9,3916.9,2.55301]
[1734003200380,0.8284,3917.9,3917.1,2.55289]
[1734003200579,0.8284,3917.9,3916.8,1.58909405]
[1734003200807,0.8284,3917.9,3916.9,3.37647954]
[1734003201019,0.8284,3917.9,3917.2,3.0]
[1734003201324,0.8284,3917.9,3917.6,2.55257]
[1734003201679,0.8284,3917.9,3917.4,2.5527]
[1734003201915,0.8284,3917.9,3917.1,0.55]
[1734003202485,0.8284,3917.9,3916.9,3.0]
[1734003202684,0.8284,3917.9,3916.9,2.55302]
[1734003202918,0.8284,3917.9,3917.0,3.0]
[1734003203417,0.8144,3917.6,3916.6,5.55322]
[1734003204194,0.338066,3917.9,3915.6,8.79]
[1734003204195,0.8144,3917.3,3915.8,3.25424]
[1734003204520,0.8144,3917.3,3916.1,2.55355]
[1734003204694,0.8204,3917.1,3916.1,2.55355]
[1734003205196,0.8204,3917.1,3915.8,2.82647954]
[1734003205391,0.8204,3917.1,3916.2,3.0]
[1734003206139,0.8204,3917.1,3915.9,3.28264795]
[1734003206312,0.8204,3917.1,3915.9,5.83631795]
[1734003206511,0.8073,3917.0,3916.1,3.0]
[1734003206724,2.55302,3917.0,3915.9,0.28264795]
[1734003206904,0.8053,3916.8,3915.7,2.55381]
[1734003207300,0.8053,3916.7,3915.7,2.55381]
[1734003207946,0.8053,3916.7,3915.8,3.0]
[1734003208836,0.8053,3916.7,3915.2,3.57100446]
[1734003208837,0.759,3916.6,3915.5,3.0]
[1734003209038,0.759,3916.6,3915.6,2.55388]
[1734003209204,0.759,3916.6,3915.7,3.0]
[1734003209541,0.759,3916.3,3915.5,2.55394]
[1734003209839,0.759,3916.3,3915.2,2.55409]
[1734003210405,2.55343,3916.3,3915.2,2.55409]
[1734003210739,0.759,3915.9,3914.7,2.55447]
[1734003211247,0.8205,3915.6,3914.5,2.5546]
[1734003211429,0.8205,3915.6,3914.4,2.55464]
[1734003211818,0.8205,3915.6,3914.1,3.52697954]
[1734003212016,0.8205,3915.6,3914.2,5.87121446]
[1734003212218,0.8205,3915.6,3914.8,2.55435]
[1734003212540,0.8205,3915.6,3914.5,5.82647954]
[1734003212845,0.8205,3915.6,3914.8,3.0]
[1734003213043,0.8205,3915.6,3914.9,2.55433]
[1734003213241,0.8205,3915.6,3914.6,3.0]
[1734003213542,0.8205,3915.6,3914.6,0.4225868]
[1734003213744,0.8205,3915.6,3914.6,3.4225868]
[1734003214253,0.50407213,3915.7,3913.7,0.7005]
[1734003214254,0.7651,3915.5,3913.7,0.7005]
[1734003214405,0.8045,3915.6,3913.9,2.55494]
[1734003214605,2.55424,3915.1,3914.0,2.5549]
[1734003214868,2.55393,3915.6,3913.4,0.7005]
[1734003214869,0.8045,3915.0,3913.4,0.7005]
[1734003215173,2.82647954,3915.4,3913.5,1.2633394]
[1734003215445,0.8252,3914.4,3913.3,2.55538]
[1734003216009,0.8325,3914.4,3913.0,2.55553]
[1734003216205,0.8325,3914.3,3913.0,2.55553]
[1734003216442,0.8325,3914.2,3913.0,2.55553]
[1734003217042,0.8325,3914.1,3913.0,2.55553]